bitfinex/quotes_SOLUSD_20240726
["timestamp","ask_amount","ask_price","bid_price","bid_amount"]
[1721984489309,0.7894132,178.75,178.72,5.5953]
[1721984490605,5.5949,178.74,178.7,13.9894]
[1721984490789,5.5957,178.71,178.66,5.5971]
[1721984490979,0.7894132,178.75,178.64,13.9946]
[1721984491182,5.595,178.73,178.67,5.5966]
[1721984491402,45.0,178.72,178.68,5.5965]
[1721984491905,45.0,178.72,178.66,13.9923]
[1721984492505,45.0,178.72,178.67,5.5968]
[1721984493206,45.0,178.72,178.66,13.9923]
[1721984493207,45.0,178.72,178.68,5.5965]
[1721984494506,45.0,178.72,178.69,13.9906]
[1721984494796,1.76310659,178.75,178.69,13.9906]
[1721984495711,7.35770659,178.75,178.7,5.5957]
[1721984495885,45.0,178.74,178.71,5.5956]
[1721984496085,46.76310659,178.75,178.71,5.5956]
[1721984496382,1.76310659,178.75,178.72,5.5952]
[1721984497219,1.76310659,178.75,178.69,13.9906]
[1721984497220,1.76310659,178.75,178.7,5.5956]
[1721984497425,1.76310659,178.75,178.71,5.5955]
[1721984497924,52.35750659,178.75,178.7,5.5959]
[1721984498389,5.5947,178.74,178.69,19.5868]
[1721984498589,46.76310659,178.75,178.7,5.5959]
[1721984499011,46.76310659,178.75,178.65,13.9932]
[1721984499210,46.76310659,178.75,178.68,13.9911]
[1721984499211,1.76310659,178.75,178.68,13.9911]
[1721984499412,5.84494164,178.74,178.68,13.9911]
[1721984499618,45.0,178.73,178.7,5.5959]
[1721984500003,7.35750659,178.75,178.7,5.5959]
[1721984500203,45.0,178.74,178.7,5.5959]
[1721984500887,50.5947,178.74,178.7,5.5959]
[1721984501093,50.5947,178.74,178.69,5.5962]
[1721984501395,45.0,178.74,178.7,5.5959]
[1721984501801,50.5947,178.74,178.7,5.5959]
[1721984502203,50.5947,178.74,178.64,15.7516]
[1721984502204,1.76310659,178.75,178.71,13.989]
[1721984502611,1.76310659,178.75,178.72,5.5952]
[1721984503102,1.76310659,178.75,178.71,13.989]
[1721984503103,1.76310659,178.75,178.73,5.5948]
[1721984503304,1.76310659,178.75,178.73,5.595]
[1721984506424,1.76310659,178.75,178.74,5.5947]
[1721984510904,0.7894132,178.75,178.74,5.5947]
[1721984514019,6.3840132,178.75,178.7,19.5855]
[1721984514221,6.3838132,178.75,178.7,19.5855]
[1721984515523,6.3838132,178.75,178.71,5.5956]
[1721984517524,0.7894132,178.75,178.71,5.5956]
[1721984517824,45.7894132,178.75,178.71,5.5956]
[1721984518424,0.7894132,178.75,178.73,5.5949]
[1721984520523,0.7894132,178.75,178.72,19.5828]
[1721984520724,0.7894132,178.75,178.71,5.5955]
[1721984521312,6.3838132,178.75,178.7,5.5958]
[1721984521513,6.3838132,178.75,178.71,5.5955]
[1721984522620,50.5948,178.74,178.7,5.5959]
[1721984522815,6.3838132,178.75,178.7,5.5959]
[1721984523008,45.0,178.74,178.7,5.5959]
[1721984528811,45.0,178.74,178.71,5.5955]
[1721984531412,45.7894132,178.75,178.71,5.5955]
[1721984531616,45.7894132,178.75,178.72,5.5953]
[1721984531829,0.7894132,178.75,178.72,5.5953]
[1721984532040,10.87905973,178.75,178.72,5.5953]
[1721984533318,0.7894132,178.75,178.72,5.5953]
[1721984533518,10.87888649,178.75,178.72,5.5953]
[1721984533746,0.7894132,178.75,178.72,5.5953]
[1721984534043,10.87888649,178.75,178.72,5.5953]
[1721984534446,0.7894132,178.75,178.71,19.5842]
[1721984534739,10.87940794,178.75,178.71,19.5842]
[1721984534925,16.47380794,178.75,178.71,19.5842]
[1721984535129,6.3838132,178.75,178.71,19.5842]
[1721984538853,50.5948,178.74,178.69,5.596]
[1721984539152,5.5948,178.74,178.69,5.596]
[1721984539536,15.68500863,178.74,178.7,5.5959]
[1721984539932,5.5948,178.74,178.7,5.5959]
[1721984540447,15.68504331,178.74,178.7,5.5959]
[1721984541857,10.09024331,178.74,178.7,5.5959]
[1721984542027,6.3838132,178.75,178.7,5.5959]
[1721984542234,6.3838132,178.75,178.71,5.5955]
[1721984542235,45.0,178.74,178.71,5.5955]
[1721984547961,50.5948,178.74,178.7,19.5855]
[1721984548147,50.5948,178.74,178.7,13.9896]
[1721984548965,5.5951,178.73,178.69,5.5962]
[1721984549143,45.0,178.72,178.69,5.5962]
[1721984550447,45.0,178.73,178.69,5.5962]
[1721984551143,45.0,178.73,178.7,5.5959]
[1721984553747,45.0,178.74,178.71,5.5954]
[1721984554052,45.7894132,178.75,178.72,5.5953]
[1721984555076,45.7894132,178.75,178.71,5.5956]
[1721984555365,51.3838132,178.75,178.71,5.5956]
[1721984556465,45.7894132,178.75,178.72,5.5953]
[1721984556647,0.7894132,178.75,178.71,5.5955]
[1721984556845,10.8783831,178.75,178.71,5.5955]
[1721984557044,45.0,178.74,178.72,5.5952]
[1721984557267,0.7894132,178.75,178.72,5.5952]
[1721984557566,10.87837513,178.75,178.72,5.5952]
[1721984558149,10.87837513,178.75,178.71,5.5955]
[1721984558671,16.47277513,178.75,178.71,5.5955]
[1721984558845,6.3838132,178.75,178.71,5.5955]
[1721984559866,45.0,178.74,178.69,19.5861]
[1721984560168,0.7894132,178.75,178.69,19.5861]
[1721984560462,5.5956,178.71,178.67,21.64]
[1721984560669,5.5954,178.72,178.67,21.64]
[1721984560861,45.0,178.71,178.67,21.64]
[1721984561065,45.0,178.71,178.68,5.5965]
[1721984562866,45.0,178.72,178.68,5.5965]
[1721984563758,45.0,178.72,178.67,30.035]
[1721984563759,45.0,178.72,178.69,5.5962]
[1721984564064,6.3838132,178.75,178.69,13.9904]
[1721984564276,55.08918632,178.74,178.71,5.5955]
[1721984564470,30.0,178.72,178.71,5.5955]
[1721984565477,45.0,178.74,178.71,5.5955]
[1721984565771,45.0,178.74,178.7,5.5959]
[1721984566168,45.0,178.74,178.69,13.9904]
[1721984566552,45.0,178.74,178.71,5.5956]
[1721984567284,45.7894132,178.75,178.71,5.5956]
[1721984570663,45.7894132,178.75,178.72,5.5953]
[1721984572678,45.7894132,178.75,178.71,19.5843]
[1721984573386,0.7894132,178.75,178.72,5.5951]
[1721984573554,0.7894132,178.75,178.73,5.5949]
[1721984573954,0.7894132,178.75,178.72,5.5952]
[1721984574560,0.7894132,178.75,178.71,19.5844]
[1721984575889,10.87830347,178.75,178.71,19.5844]
[1721984576090,0.7894132,178.75,178.71,19.5844]
[1721984576258,10.87829385,178.75,178.72,5.5952]
[1721984576890,10.87829385,178.75,178.73,5.595]
[1721984577188,0.7894132,178.75,178.73,5.595]
[1721984577370,0.7894132,178.75,178.72,5.5952]
[1721984577573,10.87829106,178.75,178.72,5.5952]
[1721984577989,0.7894132,178.75,178.72,5.5952]
[1721984578281,0.7894132,178.75,178.73,5.5949]
[1721984578884,0.7894132,178.75,178.72,5.5952]
[1721984579353,0.7894132,178.75,178.73,5.5949]
[1721984581594,0.7894132,178.75,178.72,5.5953]
[1721984582990,0.7894132,178.75,178.73,5.595]
[1721984588088,0.7894132,178.75,178.74,5.5947]
[1721984593678,0.7894132,178.75,178.74,6.71327481]
[1721984594278,0.7894132,178.75,178.74,5.5947]
[1721984596069,0.7894132,178.75,178.74,6.71327652]
[1721984596285,0.7894132,178.75,178.74,5.5947]
[1721984601405,0.7894132,178.75,178.74,6.71338046]
[1721984601580,0.7894132,178.75,178.74,5.5947]
[1721984601779,0.7894132,178.75,178.74,6.71326463]
[1721984601984,0.7894132,178.75,178.74,5.5947]
[1721984602419,0.7894132,178.75,178.74,6.71323382]
[1721984602578,0.7894132,178.75,178.74,26.71323382]
[1721984603301,11.05685178,178.85,178.8,13.9819]
[1721984603488,11.05685178,178.85,178.83,5.5918]
[1721984603689,30.0,178.84,178.83,5.5918]
[1721984604079,30.0,178.84,178.81,5.5923]
[1721984604885,0.97177114,178.85,178.82,5.5921]
[1721984605679,0.97177114,178.85,178.8,13.9819]
[1721984605900,0.97177114,178.85,178.81,5.5924]
[1721984606086,0.97177114,178.85,178.8,13.9819]
[1721984606087,5.5917,178.84,178.8,19.5746]
[1721984606287,50.5913,178.85,178.8,19.5746]
[1721984607078,5.5913,178.85,178.81,5.5925]
[1721984607279,50.5917,178.84,178.8,13.9819]
[1721984609015,50.5917,178.84,178.8,19.5747]
[1721984609793,5.5913,178.85,178.81,5.5924]
[1721984610397,5.5913,178.85,178.8,19.5746]
[1721984610807,11.43288486,178.86,178.81,5.5924]
[1721984611105,45.0,178.85,178.81,5.5924]
[1721984611895,11.43288486,178.86,178.81,5.5924]
[1721984612295,50.5913,178.85,178.8,19.5747]
[1721984613012,50.5913,178.85,178.81,5.5925]
[1721984613615,45.0,178.85,178.81,5.5925]
[1721984613799,11.43288486,178.86,178.81,5.5925]
[1721984614409,5.5912,178.85,178.81,5.5925]
[1721984614595,11.43288486,178.86,178.81,5.5925]
[1721984615315,45.0,178.85,178.77,13.9844]
[1721984615710,45.0,178.85,178.81,5.5924]
[1721984615905,11.43298486,178.86,178.81,5.5924]
[1721984616090,11.43298486,178.86,178.82,5.5921]
[1721984617006,11.43298486,178.86,178.81,5.5925]
[1721984622713,5.5911,178.86,178.81,5.5925]
[1721984623116,15.67585558,178.86,178.81,5.5925]
[1721984623508,15.67585558,178.86,178.79,35.5838]
[1721984623509,5.5918,178.84,178.79,35.5838]
[1721984623715,5.5923,178.82,178.78,5.5934]
[1721984624009,10.08475558,178.86,178.78,5.5934]
[1721984624211,5.5924,178.82,178.77,5.5937]
[1721984624409,45.0,178.85,178.77,5.5937]
[1721984624410,50.5926,178.81,178.77,5.5937]
[1721984624806,30.0,178.8,178.77,5.5937]
[1721984629133,30.0,178.8,178.73,5.5949]
[1721984629327,45.0,178.79,178.75,5.5943]
[1721984630208,50.5931,178.79,178.75,5.5943]
[1721984631612,5.5935,178.78,178.73,5.5949]
[1721984631807,50.5938,178.77,178.73,5.5949]
[1721984632130,50.5938,178.77,178.72,19.5828]
[1721984632432,30.0,178.76,178.72,19.5828]
[1721984632626,30.0,178.76,178.73,5.5949]
[1721984635537,30.0,178.76,178.72,19.5828]
[1721984636537,30.0,178.76,178.73,5.5949]
[1721984637027,30.0,178.76,178.74,5.5946]
[1721984637837,30.0,178.76,178.73,5.5949]
[1721984638832,30.0,178.76,178.72,19.5828]
[1721984640048,50.5937,178.77,178.72,19.5828]
[1721984644215,20.6105,178.83,178.72,13.9876]
[1721984644425,5.5933,178.79,178.74,5.5946]
[1721984644638,10.08776065,178.82,178.74,5.5946]
[1721984644639,5.5935,178.78,178.74,5.5946]
[1721984645639,5.5935,178.78,178.72,13.9876]
[1721984645953,45.0,178.77,178.73,5.5949]
[1721984650625,45.0,178.77,178.74,5.5946]
[1721984651028,45.0,178.78,178.74,5.5946]
[1721984651528,50.5934,178.78,178.73,5.5949]
[1721984653153,5.5938,178.77,178.73,5.5949]
[1721984653861,5.5938,178.77,178.72,19.5828]
[1721984654237,5.5938,178.77,178.73,5.595]
[1721984654544,15.33748818,178.79,178.72,13.9876]
[1721984655055,9.74418818,178.79,178.75,5.5943]
[1721984655250,9.74418818,178.79,178.76,5.594]
[1721984655635,9.74418818,178.79,178.75,5.5943]
[1721984656151,11.41791674,178.82,178.77,5.5937]
[1721984656346,60.67987425,178.81,178.76,19.5788]
[1721984656545,50.5926,178.81,178.76,19.5788]
[1721984656942,5.5928,178.8,178.76,19.5788]
[1721984657343,5.5928,178.8,178.76,13.9848]
[1721984657656,50.5926,178.81,178.76,19.5788]
[1721984659840,14.59682159,178.82,178.8,5.5928]
[1721984660151,5.5918,178.84,178.79,5.5931]
[1721984660345,5.5919,178.83,178.78,19.5764]
[1721984660549,5.5919,178.83,178.79,5.593]
[1721984662449,5.5925,178.82,178.78,13.9831]
[1721984662651,45.0,178.81,178.78,13.9831]
[1721984662856,45.0,178.82,178.78,19.5765]
[1721984664067,15.33473876,178.85,178.78,13.9831]
[1721984664241,55.08557992,178.84,178.81,5.5924]
[1721984664561,8.77110133,178.85,178.8,13.9813]
[1721984664863,8.77110133,178.85,178.81,5.5925]
[1721984665959,12.39536185,178.87,178.82,5.5921]
[1721984666162,55.08426685,178.86,178.82,5.5921]
[1721984666471,45.0,178.86,178.82,5.5921]
[1721984667557,50.5909,178.86,178.81,5.5924]
[1721984669058,50.5909,178.86,178.82,5.5921]
[1721984671070,5.5909,178.86,178.82,5.5921]
[1721984671269,12.39536185,178.87,178.82,5.5921]
[1721984671440,5.591,178.86,178.81,5.5924]
[1721984673262,5.5912,178.85,178.81,5.5924]
[1721984674643,5.5909,178.86,178.81,5.5924]
[1721984676967,12.39536185,178.87,178.82,5.5919]
[1721984677144,45.0,178.86,178.82,13.9799]
[1721984677348,50.591,178.86,178.82,19.572]
[1721984678270,50.591,178.86,178.82,13.9799]
[1721984680169,11.42332959,178.87,178.82,19.5718]
[1721984681161,5.5909,178.86,178.82,19.5718]
[1721984681366,11.42332959,178.87,178.82,19.5718]
[1721984681762,11.42332959,178.87,178.83,5.5919]
[1721984682154,5.83262959,178.87,178.84,5.5915]
[1721984682354,5.83262959,178.87,178.83,5.5918]
[1721984685158,5.83262959,178.87,178.84,5.5915]
[1721984685567,5.83262959,178.87,178.83,5.5918]
[1721984688173,11.42322959,178.87,178.83,5.5918]
[1721984690277,5.83262959,178.87,178.83,5.5918]
[1721984690480,0.97194991,178.9,178.89,5.59]
[1721984690672,0.97194991,178.9,178.86,6.5165]
[1721984690673,80.3009,179.0,178.99,5.5869]
[1721984691475,80.3009,179.0,178.93,13.9719]
[1721984691667,80.3009,179.0,178.97,5.5875]
[1721984692265,80.3009,179.0,178.99,5.5869]
[1721984692465,80.3009,179.0,178.98,13.9679]
[1721984693175,80.3009,179.0,178.99,5.5869]
[1721984695279,5.5877,178.97,178.9,5.5895]
[1721984695481,80.3009,179.0,178.88,13.9753]
[1721984695863,5.5879,178.96,178.9,5.5896]
[1721984696100,45.0,178.99,178.84,13.9782]
[1721984696380,5.5873,178.98,178.85,1.11785743]
[1721984696581,50.5869,178.99,178.93,5.5886]
[1721984696783,50.5869,178.99,178.92,5.5888]
[1721984696997,20.0,178.98,178.8,1.11761327]
[1721984697292,5.5897,178.9,178.84,5.5915]
[1721984697585,5.5895,178.91,178.85,5.5912]
[1721984697768,71.3259,178.9,178.67,1.11836946]
[1721984697967,5.5925,178.81,178.75,5.5922]
[1721984698166,5.5922,178.83,178.76,5.594]
[1721984698370,5.5929,178.8,178.75,5.5943]
[1721984698686,5.5925,178.81,178.75,5.5943]
[1721984698878,5.5922,178.83,178.74,13.9861]
[1721984699063,50.5922,178.82,178.77,5.5936]
[1721984699266,50.5922,178.82,178.76,5.594]
[1721984700691,5.5926,178.81,178.75,5.5943]
[1721984700994,50.5922,178.82,178.76,5.594]
[1721984701289,5.5926,178.81,178.76,5.594]
[1721984701891,27.9619,178.88,178.74,13.9861]
[1721984702068,27.9619,178.88,178.77,13.9842]
[1721984702273,5.5918,178.84,178.78,5.5933]
[1721984702577,45.0,178.83,178.78,5.5933]
[1721984702889,5.5912,178.85,178.77,15.10272736]
[1721984703073,5.5912,178.85,178.78,1.118382]
[1721984703579,5.5916,178.84,178.79,5.5931]
[1721984703976,13.9758,178.88,178.77,19.5776]
[1721984704272,20.0,178.84,178.68,1.11841671]
[1721984704593,5.5944,178.75,178.7,13.9891]
[1721984704793,5.5956,178.71,178.66,5.5971]
[1721984704971,5.5961,178.7,178.64,19.5922]
[1721984705289,5.5957,178.71,178.65,5.5974]
[1721984705785,5.5957,178.71,178.52,6.3141]
[1721984705786,45.0,178.7,178.6,13.9972]
[1721984705987,45.0,178.7,178.52,6.3141]
[1721984705988,13.988,178.73,178.62,13.9954]
[1721984706194,13.988,178.73,178.64,5.5978]
[1721984706195,5.5962,178.7,178.64,5.5978]
[1721984706374,13.988,178.73,178.62,13.9954]
[1721984706571,20.0,178.69,178.4,20.0]
[1721984706774,20.0,178.69,178.55,14.0013]
[1721984706775,5.5991,178.6,178.55,14.0013]
[1721984706986,5.5991,178.6,178.55,19.6019]
[1721984707195,5.5987,178.62,178.55,19.6019]
[1721984707484,13.9924,178.67,178.51,14.0041]
[1721984707485,5.5993,178.6,178.51,14.0041]
[1721984707675,5.5994,178.59,178.52,5.6013]
[1721984707903,20.0,178.66,178.49,1.9094483]
[1721984708074,5.5997,178.58,178.52,5.6015]
[1721984708591,5.5997,178.58,178.49,1.9094483]
[1721984708592,5.6007,178.55,178.5,14.0054]
[1721984708784,5.6001,178.57,178.5,19.6073]
[1721984708976,5.5994,178.59,178.5,15.12562284]
[1721984709181,45.0,178.58,178.5,15.12562284]
[1721984709575,50.5997,178.58,178.51,5.6016]
[1721984709986,5.6,178.57,178.51,5.6016]
[1721984710290,5.5993,178.6,178.54,5.6008]
[1721984710492,6.1082,178.64,178.53,15.12299044]
[1721984710678,5.5988,178.61,178.55,5.6003]
[1721984710874,5.5991,178.6,178.54,5.6009]
[1721984711491,5.5995,178.59,178.53,19.6042]
[1721984711687,45.0,178.63,178.53,14.003]
[1721984712291,5.5988,178.61,178.55,5.6005]
[1721984712588,45.0,178.6,178.56,5.6003]
[1721984712993,45.0,178.6,178.57,5.5999]
[1721984713190,6.1082,178.64,178.57,5.5999]
[1721984713373,45.0,178.63,178.57,5.5999]
[1721984713570,5.5978,178.64,178.59,5.5992]
[1721984713796,5.5982,178.63,178.56,14.0008]
[1721984713974,5.5984,178.62,178.57,5.5999]
[1721984714175,5.5982,178.63,178.57,5.5999]
[1721984714374,5.5985,178.62,178.56,19.6011]
[1721984714775,50.5988,178.61,178.56,14.0008]
[1721984715089,5.5991,178.6,178.53,19.6041]
[1721984715413,5.5987,178.62,178.51,28.009]
[1721984715698,5.5994,178.59,178.53,5.601]
[1721984715874,13.9939,178.65,178.54,5.6007]
[1721984716073,61.67853522,178.69,178.55,14.0015]
[1721984716275,41.67853522,178.69,178.55,14.0015]
[1721984716501,5.5981,178.63,178.57,5.5997]
[1721984716706,45.0,178.62,178.56,5.6003]
[1721984716871,45.0,178.62,178.55,19.6021]
[1721984717209,5.5991,178.6,178.55,14.0015]
[1721984717496,45.0,178.59,178.55,14.0015]
[1721984718104,50.5994,178.59,178.55,14.0015]
[1721984718303,45.0,178.59,178.55,14.0015]
[1721984718626,45.0,178.59,178.55,19.6018]
[1721984718909,6.57436649,178.62,178.56,5.6]
[1721984719205,5.5998,178.58,178.52,19.6053]
[1721984719386,45.0,178.57,178.52,19.6053]
[1721984720115,5.5966,178.68,178.62,5.5984]
[1721984720404,5.5966,178.68,178.54,28.0037]
[1721984720405,13.9915,178.68,178.56,14.0003]
[1721984720579,5.5982,178.63,178.58,5.5997]
[1721984720778,5.5975,178.65,178.59,5.5993]
[1721984720992,6.1107,178.68,178.6,5.599]
[1721984721204,5.5971,178.67,178.61,5.5987]
[1721984722204,46.1107,178.68,178.55,14.0013]
[1721984722414,5.5981,178.64,178.58,5.5996]
[1721984722723,45.0,178.63,178.59,5.5992]
[1721984723019,5.5972,178.66,178.61,5.5987]
[1721984723311,45.0,178.65,178.59,5.5991]
[1721984723691,50.5977,178.65,178.59,5.5991]
[1721984723891,5.5978,178.64,178.59,5.5991]
[1721984724091,50.5981,178.63,178.58,13.999]
[1721984724317,45.0,178.62,178.58,19.5985]
[1721984725110,45.0,178.63,178.58,19.5985]
[1721984725893,45.0,178.63,178.59,5.5994]
[1721984727022,45.0,178.63,178.58,13.999]
[1721984727023,50.5982,178.63,178.58,13.999]
[1721984727895,45.0,178.63,178.58,19.5984]
[1721984730211,45.0,178.63,178.58,13.999]
[1721984731211,5.5985,178.62,178.58,13.999]
[1721984731398,45.0,178.61,178.58,19.5986]
[1721984731811,45.0,178.62,178.58,19.5986]
[1721984732910,50.5985,178.62,178.58,13.999]
[1721984733097,45.0,178.62,178.58,19.5986]
[1721984737018,45.0,178.62,178.59,5.5993]
[1721984737209,45.0,178.63,178.59,5.5993]
[1721984739422,50.5982,178.63,178.58,19.5986]
[1721984739926,5.5985,178.62,178.58,13.999]
[1721984740101,5.5985,178.62,178.5,6.2249]
[1721984740102,45.0,178.61,178.5,6.2249]
[1721984740300,5.5994,178.59,178.54,5.6009]
[1721984740498,45.0,178.58,178.54,5.6009]
[1721984741928,30.0,178.57,178.54,5.6009]
[1721984742136,45.0,178.56,178.54,5.6009]
[1721984744919,45.0,178.56,178.53,19.6039]
[1721984745231,50.6001,178.57,178.52,5.6015]
[1721984745519,67.4693,178.57,178.5,14.0053]
[1721984745727,67.4693,178.57,178.49,6.3918132]
[1721984746028,5.601,178.54,178.49,6.3918132]
[1721984746321,80.6013,178.53,178.49,0.7894132]
[1721984746530,5.6016,178.52,178.49,0.7894132]
[1721984746706,45.0,178.51,178.49,0.7894132]
[1721984747198,45.0,178.52,178.49,0.7894132]
[1721984747435,5.6022,178.5,178.49,0.7894132]
[1721984747609,45.0,178.5,178.49,0.7894132]
[1721984747807,75.0,178.5,178.49,0.7894132]
[1721984748212,30.0,178.5,178.49,0.7894132]
[1721984748643,75.0,178.5,178.49,0.7894132]
[1721984748814,80.6022,178.5,178.49,0.7894132]
[1721984749016,50.6022,178.5,178.49,0.7894132]
[1721984749335,45.0,178.5,178.49,0.7894132]
[1721984749515,50.6022,178.5,178.49,0.7894132]
[1721984750024,45.0,178.5,178.49,0.7894132]
[1721984750726,50.6022,178.5,178.49,0.7894132]
[1721984752024,80.6022,178.5,178.49,0.7894132]
[1721984753235,45.0,178.5,178.49,0.7894132]
[1721984753610,50.6022,178.5,178.49,0.7894132]
[1721984754809,45.0,178.5,178.49,0.7894132]
[1721984757221,50.6022,178.5,178.49,0.7894132]
[1721984758227,30.0,178.5,178.49,6.3919132]
[1721984758523,30.0,178.5,178.49,0.7894132]
[1721984759320,5.6016,178.53,178.49,0.7894132]
[1721984759817,50.6016,178.52,178.49,0.7894132]
[1721984760231,5.6019,178.51,178.49,0.7894132]
[1721984760549,45.0,178.5,178.49,0.7894132]
[1721984760929,50.6022,178.5,178.49,0.7894132]
[1721984762139,80.6022,178.5,178.49,0.7894132]
[1721984766323,120.6022,178.5,178.49,0.7894132]
[1721984766848,122.47716217,178.5,178.49,0.7894132]
[1721984767850,20.0,178.48,178.38,14.0147]
[1721984768149,5.6044,178.43,178.39,5.6054]
[1721984768531,45.0,178.42,178.39,5.6054]
[1721984769220,5.6041,178.44,178.39,5.6054]
[1721984769221,45.0,178.43,178.39,5.6054]
[1721984769543,50.6045,178.43,178.39,5.6054]
[1721984770129,45.0,178.43,178.4,5.6052]
[1721984770434,45.0,178.44,178.41,5.6049]
[1721984770751,30.0,178.46,178.4,14.0129]
[1721984770942,30.0,178.46,178.37,1.12106011]
[1721984771141,30.0,178.46,178.44,5.6039]
[1721984771347,14.0043,178.52,178.44,5.6039]
[1721984771655,5.6025,178.49,178.44,5.6039]
[1721984771862,5.6029,178.48,178.44,5.6039]
[1721984772034,5.6029,178.48,178.43,5.6043]
[1721984772753,5.6024,178.5,178.45,5.6037]
[1721984772960,5.6024,178.5,178.44,14.0098]
[1721984773261,5.6024,178.5,178.45,5.6035]
[1721984773626,5.6019,178.52,178.47,5.603]
[1721984773826,380.5,178.54,178.44,29.14065079]
[1721984774027,380.5,178.54,178.51,5.6016]
[1721984774549,22.53359583,178.58,178.52,5.6014]
[1721984774763,8.78470255,178.59,178.54,5.6009]
[1721984775057,0.97577195,178.62,178.53,19.6037]
[1721984775254,5.5996,178.59,178.53,19.6037]
[1721984775649,5.5996,178.59,178.54,5.6008]
[1721984776160,21.3638,178.63,178.53,14.0025]
[1721984776329,5.5998,178.58,178.53,19.6037]
[1721984777332,45.0,178.57,178.53,19.6037]
[1721984779655,5.6003,178.56,178.51,5.6016]
[1721984780950,5.6003,178.56,178.52,5.6015]
[1721984782640,50.6,178.57,178.52,5.6015]
[1721984783954,5.6006,178.56,178.5,14.0053]
[1721984784155,45.0,178.55,178.5,14.0053]
[1721984784362,45.0,178.55,178.51,5.6016]
[1721984784541,30.0,178.54,178.51,5.6016]
[1721984785040,30.0,178.54,178.52,5.6015]
[1721984785244,30.0,178.54,178.47,14.0075]
[1721984785455,45.0,178.53,178.5,5.6021]
[1721984788080,45.0,178.53,178.51,5.6019]
[1721984788454,45.0,178.53,178.49,14.0059]
[1721984788853,45.0,178.53,178.5,5.6022]
[1721984789170,45.0,178.53,178.5,5.6021]
[1721984789550,45.0,178.53,178.49,14.0059]
[1721984789757,30.0,178.54,178.51,14.0042]
[1721984789965,30.0,178.54,178.53,5.6012]
[1721984790572,30.0,178.54,178.52,5.6015]
[1721984790867,5.5991,178.6,178.55,5.6006]
[1721984791051,5.5994,178.59,178.54,19.6032]
[1721984791938,5.5994,178.59,178.55,5.6006]
[1721984792170,5.5992,178.6,178.55,5.6006]
[1721984792577,50.5994,178.59,178.54,19.6032]
[1721984793365,5.5997,178.58,178.54,19.6032]
[1721984793576,45.0,178.57,178.54,14.0023]
[1721984794448,45.0,178.57,178.54,19.6032]
[1721984794948,45.0,178.58,178.54,19.6032]
[1721984795146,45.0,178.58,178.54,14.0023]
[1721984795346,8.78221917,178.62,178.56,5.6003]
[1721984795664,45.0,178.61,178.56,5.6003]
[1721984795971,5.5991,178.6,178.55,5.6006]
[1721984796266,45.0,178.59,178.55,5.6006]
[1721984796850,50.5994,178.59,178.55,5.6006]
[1721984797147,50.5994,178.59,178.54,19.6032]
[1721984800972,45.0,178.59,178.56,5.6002]
[1721984801195,50.5991,178.6,178.56,5.6002]
[1721984801652,50.5991,178.6,178.55,5.6006]
[1721984801852,5.5994,178.59,178.55,5.6006]
[1721984802271,5.5994,178.59,178.54,19.6032]
[1721984802479,45.0,178.58,178.54,19.6032]
[1721984803780,45.0,178.58,178.55,5.6006]
[1721984805884,45.0,178.59,178.55,5.6006]
[1721984806379,45.0,178.59,178.56,5.6002]
[1721984807563,45.0,178.6,178.57,13.9999]
[1721984807763,50.5986,178.62,178.57,19.5998]
[1721984808068,45.0,178.62,178.57,13.9999]
[1721984808883,45.0,178.62,178.58,5.5996]